bitfinex-derivatives/quotes_BTCF0:USTF0_20250129
["timestamp","ask_amount","ask_price","bid_price","bid_amount"]
[1738157727245,0.64983932,101870.0,101860.0,0.65426527]
[1738157727535,0.64983932,101870.0,101860.0,0.65526527]
[1738157727735,0.64983932,101870.0,101860.0,0.65426527]
[1738157728035,0.28903932,101870.0,101860.0,0.65426527]
[1738157728622,0.28903932,101870.0,101860.0,1.01506527]
[1738157728824,0.196399,101870.0,101860.0,1.01506527]
[1738157729037,0.2058087,101870.0,101860.0,1.30412359]
[1738157729330,0.09655732,101870.0,101860.0,0.74230517]
[1738157729724,0.08714762,101870.0,101860.0,0.74230517]
[1738157730532,0.00014685,101880.0,101870.0,0.196399]
[1738157730837,0.00014685,101880.0,101870.0,0.91143932]
[1738157731334,0.14524604,101890.0,101880.0,0.196379]
[1738157731525,0.14524604,101890.0,101880.0,0.94245964]
[1738157731728,0.17463367,101900.0,101890.0,0.19636]
[1738157732036,0.17463367,101900.0,101890.0,0.78870032]
[1738157733135,0.18363367,101900.0,101890.0,0.78970032]
[1738157733332,0.009,101900.0,101890.0,0.78970032]
[1738157733731,0.196341,101900.0,101890.0,0.79270032]
[1738157734535,0.196341,101900.0,101890.0,0.79370032]
[1738157735430,0.28898132,101900.0,101890.0,0.70106]
[1738157735828,0.35898132,101900.0,101890.0,0.63106]
[1738157736726,0.266341,101900.0,101890.0,0.63106]
[1738157736929,0.196341,101900.0,101890.0,0.63106]
[1738157737124,0.196341,101900.0,101890.0,0.72370032]
[1738157737325,0.08084005,101910.0,101890.0,0.72370032]
[1738157737529,0.27717105,101910.0,101900.0,0.557141]
[1738157738928,0.08084005,101910.0,101900.0,0.65078132]
[1738157740136,0.27716205,101910.0,101900.0,0.558141]
[1738157740740,0.27716205,101910.0,101900.0,0.578141]
[1738157742137,0.08084005,101910.0,101900.0,0.67078132]
[1738157742839,0.27716205,101910.0,101900.0,0.578141]
[1738157744442,0.08084005,101910.0,101900.0,0.578141]
[1738157746743,0.27716205,101910.0,101900.0,0.578141]
[1738157750344,0.08084005,101910.0,101900.0,0.67078132]
[1738157750745,0.08084005,101910.0,101900.0,0.47444032]
[1738157751348,0.08084005,101910.0,101900.0,0.3818]
[1738157752254,0.08084005,101910.0,101900.0,0.578141]
[1738157752437,0.08084005,101910.0,101900.0,0.67078132]
[1738157752641,0.00161953,101910.0,101900.0,0.67078132]
[1738157752947,0.00161953,101910.0,101900.0,0.73878132]
[1738157754348,0.19794153,101910.0,101900.0,0.73878132]
[1738157756050,0.00161953,101910.0,101900.0,0.73878132]
[1738157756654,0.19794153,101910.0,101900.0,0.73878132]
[1738157758852,0.00161953,101910.0,101900.0,0.73878132]
[1738157759651,0.19794153,101910.0,101900.0,0.73878132]
[1738157760248,0.19794153,101910.0,101900.0,0.91461176]
[1738157760645,0.19794153,101910.0,101900.0,0.84661176]
[1738157760850,0.19794153,101910.0,101900.0,0.75397144]
[1738157761153,0.19794153,101910.0,101900.0,0.55763044]
[1738157762946,0.00161953,101910.0,101900.0,0.55763044]
[1738157763146,0.00161953,101910.0,101900.0,0.75397144]
[1738157763360,0.00161953,101910.0,101900.0,0.98841202]
[1738157763852,0.00161953,101910.0,101900.0,0.79207102]
[1738157764056,0.00161953,101910.0,101900.0,1.08105234]
[1738157764452,0.00014685,101910.0,101900.0,1.08105234]
[1738157764657,0.00014685,101910.0,101900.0,1.15075234]
[1738157765657,0.11605567,101920.0,101910.0,0.196322]
[1738157765854,0.40499799,101920.0,101910.0,0.5808]
[1738157766654,0.31235767,101920.0,101910.0,0.5808]
[1738157766952,0.31535767,101920.0,101910.0,0.5808]
[1738157767657,0.001,101920.0,101910.0,0.67444032]
[1738157767861,0.26372924,101930.0,101910.0,0.87076132]
[1738157768052,0.46001224,101930.0,101920.0,0.3608]
[1738157768254,0.46001224,101930.0,101920.0,0.19]
[1738157768652,0.46001224,101930.0,101920.0,0.5508]
[1738157768857,0.46001224,101930.0,101920.0,0.19]
[1738157769053,0.26372924,101930.0,101920.0,0.19]
[1738157769257,0.26372924,101930.0,101920.0,0.64344032]
[1738157769461,0.19762924,101930.0,101920.0,0.83974232]
[1738157770066,0.19762924,101930.0,101920.0,0.84074232]
[1738157770460,0.18830252,101930.0,101920.0,0.84074232]
[1738157772567,0.07224685,101930.0,101920.0,1.25240645]
[1738157772969,0.26852985,101930.0,101920.0,1.25240645]
[1738157773267,0.26852985,101930.0,101920.0,0.96346413]
[1738157773470,0.36117017,101930.0,101920.0,0.60266413]
[1738157773661,0.36117017,101930.0,101920.0,0.41266413]
[1738157776970,0.36117017,101930.0,101920.0,0.001]
[1738157780770,0.47722584,101930.0,101920.0,0.001]
[1738157780977,0.47722584,101930.0,101920.0,0.3618]
[1738157781175,0.18830252,101930.0,101920.0,0.47444032]
[1738157781474,0.18830252,101930.0,101920.0,0.67074232]
[1738157782069,0.18830252,101930.0,101920.0,0.73834232]
[1738157783375,0.11620252,101930.0,101920.0,0.73834232]
[1738157783576,0.14558041,101940.0,101920.0,0.97755307]
[1738157783775,0.1740835,101950.0,101940.0,0.196264]
[1738157784079,0.33929742,101970.0,101960.0,0.196225]
[1738157784386,0.33929742,101970.0,101960.0,1.23046532]
[1738157784687,0.53550342,101970.0,101960.0,0.557025]
[1738157785283,0.53550342,101970.0,101960.0,0.917825]
[1738157785884,0.53550342,101970.0,101960.0,0.7216]
[1738157786087,0.332406,101970.0,101960.0,0.7216]
[1738157787391,0.335406,101970.0,101960.0,0.7216]
[1738157787585,0.344406,101970.0,101960.0,0.7226]
[1738157789491,0.344406,101970.0,101960.0,0.3618]
[1738157790791,0.1482,101970.0,101960.0,0.558025]
[1738157791187,0.1482,101970.0,101960.0,1.01146532]
[1738157791387,0.1482,101970.0,101960.0,1.03146532]
[1738157793299,0.1482,101970.0,101960.0,0.938825]
[1738157793797,0.344406,101970.0,101960.0,0.938825]
[1738157794494,0.43704632,101970.0,101960.0,0.021]
[1738157794689,0.43704632,101970.0,101960.0,0.001]
[1738157795795,0.196225,101960.0,101950.0,0.17657433]
[1738157796004,0.196244,101950.0,101940.0,0.59603665]
[1738157796300,0.196244,101950.0,101940.0,0.23523665]
[1738157796301,0.71648432,101950.0,101940.0,0.23523665]
[1738157796501,0.35568432,101950.0,101940.0,0.23523665]
[1738157797492,0.16244032,101950.0,101930.0,0.36094685]
[1738157797692,0.196264,101940.0,101930.0,0.38094685]
[1738157797895,0.196264,101940.0,101930.0,0.47358717]
[1738157798112,0.0698,101950.0,101930.0,0.47358717]
[1738157798290,0.267052,101950.0,101930.0,0.47358717]
[1738157798493,0.267052,101950.0,101930.0,0.66987017]
[1738157798494,0.264052,101950.0,101930.0,0.66987017]
[1738157798692,0.267052,101950.0,101930.0,0.66987017]
[1738157799097,0.337152,101950.0,101930.0,0.66987017]
[1738157800402,0.337152,101950.0,101930.0,0.47358717]
[1738157800701,0.42879232,101950.0,101930.0,0.38094685]
[1738157800899,0.43821279,101950.0,101930.0,0.57722785]
[1738157801093,0.196264,101940.0,101930.0,0.47358717]
[1738157801292,0.196264,101940.0,101930.0,0.38094685]
[1738157801894,0.28890432,101940.0,101930.0,0.38094685]
[1738157802605,0.28890432,101940.0,101930.0,0.38194685]
[1738157803505,0.28890432,101940.0,101930.0,0.38594685]
[1738157803705,0.28890432,101940.0,101930.0,0.36594685]
[1738157804105,1.78890432,101940.0,101930.0,0.36594685]
[1738157804498,1.78890432,101940.0,101930.0,0.00514685]
[1738157806812,1.59264032,101940.0,101930.0,0.00514685]
[1738157807896,2.04608064,101940.0,101930.0,0.00514685]
[1738157809008,1.95344032,101940.0,101930.0,0.00514685]
[1738157809316,2.04608064,101940.0,101930.0,0.00514685]
[1738157809811,2.12656064,101940.0,101930.0,0.00514685]
[1738157811499,2.12656064,101940.0,101910.0,0.3608]
[1738157811702,0.09264032,101920.0,101910.0,0.5508]
[1738157812203,0.22474032,101920.0,101910.0,0.5508]
[1738157812913,0.1321,101920.0,101910.0,0.5508]
[1738157813308,0.0651,101920.0,101910.0,0.64344032]
[1738157813612,0.06954685,101930.0,101910.0,0.64444032]
[1738157813811,0.13464685,101930.0,101920.0,0.45344032]
[1738157814108,0.13464685,101930.0,101920.0,0.3608]
[1738157814511,0.13464685,101930.0,101920.0,0.3808]
[1738157815416,0.00014685,101930.0,101920.0,0.47344032]
[1738157815614,0.00014685,101930.0,101920.0,0.54154032]
[1738157816818,0.19642985,101930.0,101920.0,0.4499]
[1738157817014,0.28907017,101930.0,101920.0,0.3828]
[1738157817207,0.28907017,101930.0,101920.0,0.022]
[1738157819216,0.19642985,101930.0,101920.0,0.022]
[1738157819521,0.28907017,101930.0,101920.0,0.022]
[1738157820313,0.19642985,101930.0,101920.0,0.579102]
[1738157820514,0.19642985,101930.0,101920.0,0.3828]
[1738157821607,0.20593204,101930.0,101920.0,0.3828]
[1738157821813,0.00014685,101930.0,101920.0,0.67174232]
[1738157822016,0.00014685,101930.0,101920.0,0.73774232]
[1738157822619,0.00014685,101930.0,101920.0,0.54144032]
[1738157824417,0.32029657,101960.0,101920.0,0.54144032]
[1738157824723,0.32029657,101960.0,101950.0,0.45344032]
[1738157824922,0.32029657,101960.0,101950.0,0.47344032]
[1738157825126,0.32029657,101960.0,101950.0,0.3808]
[1738157825127,0.00147195,101960.0,101950.0,0.3808]
[1738157825727,0.00347195,101960.0,101950.0,0.3808]
[1738157826118,0.01298401,101960.0,101950.0,0.3808]
[1738157826322,0.00347195,101960.0,101950.0,0.3808]
[1738157826825,0.00647195,101960.0,101950.0,0.3808]
[1738157827613,0.00547195,101960.0,101950.0,0.3808]
[1738157828225,0.004,101960.0,101950.0,0.3808]
[1738157828825,0.004,101960.0,101950.0,0.47344032]
[1738157829021,0.004,101960.0,101950.0,0.3808]
[1738157830315,0.09364032,101960.0,101950.0,0.3808]
[1738157831434,0.09264032,101960.0,101950.0,0.3808]
[1738157831935,0.09264032,101960.0,101950.0,0.003]
[1738157832231,0.16068717,101970.0,101950.0,0.3648]
[1738157833521,0.16068717,101970.0,101950.0,0.3618]
[1738157834032,0.17034671,101970.0,101950.0,0.3618]
[1738157834331,0.07770639,101970.0,101960.0,0.3608]
[1738157834526,1e-08,101970.0,101960.0,0.56344032]
[1738157834724,1e-08,101970.0,101960.0,0.70174032]
[1738157848430,1e-08,101970.0,101960.0,0.79438064]
[1738157849735,1e-08,101970.0,101960.0,1.02961729]
[1738157852035,1e-08,101970.0,101960.0,0.93697697]
[1738157852344,1e-08,101970.0,101960.0,1.02961729]
[1738157853541,1e-08,101970.0,101960.0,1.12769015]
[1738157853944,1e-08,101970.0,101960.0,1.20021015]
[1738157854242,1e-08,101970.0,101960.0,1.50602278]
[1738157854446,1e-08,101970.0,101960.0,1.40794992]
[1738157854644,1e-08,101970.0,101960.0,1.42266992]
[1738157854944,1e-08,101970.0,101960.0,1.50602278]
[1738157855143,1e-08,101970.0,101960.0,1.70602278]
[1738157855444,1e-08,101970.0,101960.0,2.1173364]
[1738157855947,0.0655,101990.0,101970.0,0.3608]
[1738157856136,0.2359,102000.0,101980.0,0.45344032]
[1738157856337,0.2359,102000.0,101990.0,0.45344032]
[1738157856534,0.2359,102000.0,101990.0,0.64344032]
[1738157857242,0.1,102000.0,101990.0,0.64344032]
[1738157857545,0.109,102000.0,101990.0,0.64344032]
[1738157859345,0.112,102000.0,101990.0,0.64344032]
[1738157860653,0.112,102000.0,101990.0,0.6531977]
[1738157868451,0.112,102000.0,101990.0,0.74583802]
[1738157868948,0.06834685,102010.0,101990.0,1.05206204]
[1738157869142,0.06834685,102010.0,102000.0,0.54608064]
[1738157869343,0.06834685,102010.0,102000.0,0.73608064]
[1738157870347,0.07434685,102010.0,102000.0,0.73608064]
[1738157870746,0.06834685,102010.0,102000.0,0.73608064]
[1738157870956,0.07434685,102010.0,102000.0,0.73608064]
[1738157871758,0.07534685,102010.0,102000.0,0.83411505]
[1738157872051,0.1332,102020.0,102000.0,1.11938527]
[1738157872257,0.0685,102020.0,102010.0,0.45344032]
[1738157872440,0.33486667,102030.0,102010.0,0.66344032]
[1738157872645,0.40676667,102030.0,102020.0,0.45344032]
[1738157872845,0.40676667,102030.0,102020.0,0.66344032]
[1738157873355,0.40676667,102030.0,102020.0,0.75608064]
[1738157873743,0.40676667,102030.0,102020.0,0.66344032]
[1738157873947,0.2038,102030.0,102020.0,0.66344032]
[1738157874249,0.1458,102030.0,102020.0,0.75708064]
[1738157874551,0.1368,102030.0,102020.0,0.75608064]
[1738157874752,0.1458,102030.0,102020.0,0.75708064]
[1738157874953,0.0739,102030.0,102020.0,0.75708064]
[1738157875148,0.0779,102030.0,102020.0,0.82688064]
[1738157875457,0.08713268,102040.0,102020.0,0.99737583]
[1738157875754,0.08713268,102040.0,102030.0,0.54608064]
[1738157875955,0.08713268,102040.0,102030.0,0.76608064]
[1738157876449,0.26086681,102050.0,102030.0,0.76608064]
[1738157876755,0.20309742,102080.0,102060.0,0.3608]
[1738157876939,0.20309742,102080.0,102070.0,0.54608064]
[1738157877143,0.20309742,102080.0,102070.0,0.65344032]
[1738157878148,0.20309742,102080.0,102070.0,0.74608064]
[1738157878352,0.09631522,102080.0,102070.0,1.57205064]
[1738157878654,0.09631522,102080.0,102070.0,1.47378064]
[1738157879153,0.53536244,102100.0,102070.0,1.47378064]
[1738157879349,0.53536244,102100.0,102090.0,0.81424032]
[1738157879551,0.47601217,102100.0,102090.0,1.12688064]
[1738157880752,0.54691217,102100.0,102090.0,1.12688064]
[1738157880953,0.54691217,102100.0,102090.0,1.12888064]
[1738157881752,0.39811217,102100.0,102090.0,1.22682862]
[1738157881948,0.31097949,102100.0,102090.0,1.22682862]
[1738157882459,0.25162922,102100.0,102090.0,1.30094862]
[1738157882661,0.25162922,102100.0,102090.0,1.49692262]
[1738157883046,0.25162922,102100.0,102090.0,1.60440906]
[1738157883452,0.0681,102120.0,102090.0,1.40843506]
[1738157883660,0.0681,102120.0,102110.0,1.01017732]
[1738157883858,0.0681,102120.0,102110.0,1.29281764]
[1738157884067,0.0681,102120.0,102110.0,1.20017732]
[1738157886149,0.264017,102120.0,102110.0,0.9116]
[1738157886653,0.195957,102100.0,102090.0,0.3608]
[1738157886858,0.195957,102100.0,102090.0,0.5408]
[1738157887256,0.329457,102100.0,102090.0,0.63344032]
[1738157887466,0.329457,102100.0,102090.0,0.18]
[1738157887656,0.195976,102090.0,102080.0,0.28146919]
[1738157887971,0.195976,102090.0,102080.0,0.47241604]
[1738157888262,0.195976,102090.0,102080.0,0.36241604]
[1738157888650,0.195976,102090.0,102080.0,0.55241604]
[1738157889260,0.09264032,102090.0,102080.0,0.005]
[1738157889460,0.28861632,102090.0,102080.0,0.005]
[1738157889963,0.195995,102080.0,102070.0,0.23417638]
[1738157890354,0.28863532,102080.0,102070.0,0.23417638]
[1738157890760,0.35973532,102080.0,102070.0,0.23417638]
[1738157890964,0.267095,102080.0,102070.0,0.23417638]
[1738157891561,0.196014,102070.0,102060.0,0.45369043]
[1738157891756,0.263314,102070.0,102060.0,0.45369043]
[1738157891957,0.263314,102070.0,102060.0,0.47369043]
[1738157892958,0.263314,102070.0,102060.0,0.66972343]
[1738157893158,0.263314,102070.0,102060.0,0.67072343]
[1738157893355,0.195998,102080.0,102070.0,0.19601]
[1738157893659,0.00014685,102090.0,102080.0,0.195995]
[1738157893857,0.00014685,102090.0,102080.0,0.84943532]
[1738157894059,0.19612285,102090.0,102080.0,0.84943532]
[1738157894257,0.19612285,102090.0,102080.0,0.756795]
[1738157894464,0.19612285,102090.0,102080.0,0.84943532]
[1738157895366,0.00014685,102090.0,102080.0,0.84943532]
[1738157896260,0.00014685,102090.0,102080.0,0.85443532]
[1738157896854,0.00014685,102090.0,102080.0,0.85643532]
[1738157899361,0.00014685,102090.0,102080.0,0.207]
[1738157899362,0.28876317,102090.0,102080.0,0.207]
[1738157899672,0.19612285,102090.0,102080.0,0.207]
[1738157899974,0.19612285,102090.0,102080.0,0.007]
[1738157900271,0.64956317,102090.0,102080.0,0.017]
[1738157900468,0.45358717,102090.0,102070.0,0.3]
[1738157900662,0.64943532,102080.0,102070.0,0.52]
[1738157900980,0.195995,102080.0,102070.0,0.8808]
[1738157901271,0.195995,102080.0,102070.0,1.16945432]
[1738157903269,0.195995,102080.0,102070.0,1.080814]
[1738157903657,0.195995,102080.0,102070.0,1.17145432]
[1738157903865,0.195995,102080.0,102070.0,1.17545432]
[1738157907568,0.00014685,102090.0,102070.0,0.97944032]
[1738157907769,0.19612885,102090.0,102080.0,0.195994]
[1738157907965,0.19612885,102090.0,102080.0,0.395994]
[1738157908970,0.19612885,102090.0,102080.0,0.756794]
[1738157909866,0.19612885,102090.0,102080.0,0.757794]
[1738157910066,0.19612885,102090.0,102080.0,0.85143432]
[1738157910374,0.00014685,102090.0,102080.0,0.85143432]
[1738157912470,0.00014685,102090.0,102080.0,0.94407464]
[1738157913065,0.00014685,102090.0,102080.0,0.85143432]
[1738157913272,0.00014685,102090.0,102080.0,0.94407464]
[1738157913479,0.195942,102110.0,102100.0,0.195956]
[1738157913775,0.195942,102110.0,102100.0,0.84939632]
[1738157913978,0.261827,102120.0,102110.0,0.195937]
[1738157914171,0.261827,102120.0,102110.0,0.64937732]
[1738157914676,0.261827,102120.0,102110.0,0.556737]
[1738157914866,0.195927,102120.0,102110.0,0.556737]
[1738157916773,0.203927,102120.0,102110.0,0.84037732]
[1738157916975,0.205927,102120.0,102110.0,0.84037732]
[1738157917176,0.197927,102120.0,102110.0,0.83937732]
[1738157917473,0.007,102120.0,102110.0,0.83937732]
[1738157917673,0.195908,102130.0,102120.0,0.19591]
[1738157917879,0.195908,102130.0,102120.0,0.64935032]
[1738157918384,0.195908,102130.0,102120.0,0.77465032]
[1738157918878,0.195908,102130.0,102120.0,0.79465032]
[1738157919779,0.195908,102130.0,102120.0,0.57671]
[1738157920082,0.198908,102130.0,102120.0,0.55771]
[1738157920784,0.003,102130.0,102120.0,0.65035032]
[1738157922085,0.003,102130.0,102120.0,1.06026162]
[1738157922282,0.003,102130.0,102120.0,1.17290194]
[1738157922485,0.003,102130.0,102120.0,1.23840194]
[1738157925286,0.003,102130.0,102120.0,1.14576162]
[1738157925490,0.003,102130.0,102120.0,1.23840194]
[1738157926485,0.003,102130.0,102120.0,1.43912661]
[1738157926790,0.40272348,102150.0,102140.0,0.19588]
[1738157927088,0.40272348,102150.0,102140.0,0.91748]
[1738157927883,0.40372348,102150.0,102140.0,0.92748]
[1738157928093,0.4963638,102150.0,102140.0,0.7216]
[1738157928679,0.40372348,102150.0,102140.0,0.7216]
[1738157929085,0.40372348,102150.0,102140.0,0.91748]
[1738157929395,0.4963638,102150.0,102140.0,0.91748]
[1738157932498,0.4963638,102150.0,102140.0,0.7216]
[1738157936501,0.58900412,102150.0,102140.0,0.7216]
[1738157936690,0.19588,102140.0,102130.0,0.36094685]
[1738157936891,0.28852032,102140.0,102130.0,0.36094685]
[1738157938089,0.28852032,102140.0,102130.0,0.36194685]
[1738157938598,0.28852032,102140.0,102130.0,0.36394685]
[1738157940593,0.28852032,102140.0,102130.0,0.00314685]
[1738157940793,0.09264032,102140.0,102120.0,0.74400985]
[1738157940996,0.38117964,102130.0,102120.0,0.37231671]
[1738157941196,0.195918,102120.0,102110.0,0.99090653]
[1738157941498,2.14543864,102120.0,102110.0,0.99090653]
[1738157941694,0.195937,102110.0,102100.0,0.7397431]
[1738157941897,0.28857732,102110.0,102100.0,0.7397431]
[1738157942901,0.58857732,102110.0,102100.0,0.08695676]
[1738157943102,0.28857732,102110.0,102100.0,0.44775676]
[1738157943302,0.28857732,102110.0,102100.0,0.79908405]
[1738157943896,0.29057732,102110.0,102100.0,0.79908405]
[1738157945000,0.29357732,102110.0,102100.0,0.79908405]
[1738157945403,0.29384309,102110.0,102100.0,0.79908405]
[1738157946107,0.29484309,102110.0,102100.0,0.79908405]
[1738157946701,0.29084309,102110.0,102100.0,0.79908405]
[1738157946917,0.28984309,102110.0,102100.0,0.79908405]
[1738157947503,0.28984309,102110.0,102100.0,0.3608]
[1738157947706,0.29970069,102110.0,102100.0,0.3608]
[1738157948001,0.37214069,102110.0,102100.0,0.3608]
[1738157949506,0.29970069,102110.0,102100.0,0.3608]
[1738157949699,0.37214069,102110.0,102100.0,0.3608]
[1738157951506,0.67214069,102110.0,102100.0,0.3608]
[1738157951811,0.67214069,102110.0,102100.0,0.34911824]
[1738157952005,0.92964401,102110.0,102080.0,0.3608]
[1738157952205,0.38125564,102090.0,102080.0,0.3608]
[1738157952410,0.28861532,102090.0,102080.0,0.3608]
[1738157953504,0.28861532,102090.0,102080.0,0.3658]
[1738157954306,0.28861532,102090.0,102080.0,0.3678]
[1738157957118,0.29816071,102090.0,102080.0,0.3678]
[1738157960006,0.39080103,102090.0,102080.0,0.3678]
[1738157960207,0.39080103,102090.0,102080.0,0.007]
[1738157960613,0.45590103,102090.0,102080.0,0.007]
[1738157961017,1.95590103,102090.0,102080.0,0.007]
[1738157963123,2.02830103,102090.0,102080.0,0.007]
[1738157963425,2.02930103,102090.0,102080.0,0.005]
[1738157963625,0.195994,102080.0,102070.0,0.85084685]
[1738157963823,0.28863432,102080.0,102070.0,0.85084685]
[1738157967128,0.28963432,102080.0,102070.0,0.85084685]
[1738157968925,0.40625185,102080.0,102070.0,0.85084685]
[1738157973324,0.47861185,102080.0,102070.0,0.85084685]
[1738157976827,0.40625185,102080.0,102070.0,0.85084685]
[1738157977031,0.31361153,102080.0,102070.0,0.85084685]
[1738157977333,0.40625185,102080.0,102070.0,0.85084685]
[1738157979024,0.40525185,102080.0,102070.0,0.85284685]
[1738157979426,0.31261153,102080.0,102070.0,1.04886085]
[1738157979628,0.31261153,102080.0,102070.0,1.06886085]
[1738157979629,0.11661753,102080.0,102070.0,1.06886085]
[1738157980133,0.11661753,102080.0,102070.0,1.14150117]
[1738157980334,0.11661753,102080.0,102070.0,1.04886085]
[1738157980535,0.31261153,102080.0,102070.0,1.04886085]
[1738157980737,0.40525185,102080.0,102070.0,0.85384685]
[1738157981430,0.28863432,102080.0,102070.0,0.85384685]
[1738157981633,0.28863432,102080.0,102070.0,0.87384685]
[1738157982242,0.28863432,102080.0,102070.0,0.85384685]
[1738157985432,0.55071065,102080.0,102070.0,0.85384685]
[1738157988234,2.05071065,102080.0,102070.0,0.85384685]
[1738157989127,2.44335097,102080.0,102070.0,0.1299973]
[1738157989339,2.44335097,102080.0,102050.0,0.65388316]
[1738157989340,0.196033,102060.0,102050.0,0.65388316]
[1738157989532,0.45359364,102060.0,102050.0,0.29308316]
[1738157989843,0.45359364,102060.0,102050.0,0.28607647]
[1738157990033,1.95359364,102060.0,102050.0,0.28607647]
[1738157990426,1.95359364,102060.0,102050.0,0.28707647]
[1738157990627,1.95359364,102060.0,102050.0,0.29207647]
[1738157991242,1.95359364,102060.0,102050.0,0.29107647]
[1738157991540,1.95359364,102060.0,102050.0,0.29307647]
[1738157992238,0.45359364,102060.0,102050.0,0.29307647]
[1738157992742,1.95359364,102060.0,102050.0,0.29307647]
[1738157993136,0.45359364,102060.0,102050.0,0.29307647]
[1738157993629,1.95359364,102060.0,102050.0,0.29307647]
[1738157993832,1.96159364,102060.0,102050.0,0.28707647]
[1738157994036,1.96359364,102060.0,102050.0,0.28707647]
[1738157994229,1.97348146,102060.0,102050.0,0.28707647]
[1738157995039,2.29386656,102060.0,102050.0,0.001]
[1738157996447,0.196052,102050.0,102040.0,0.55001667]
[1738157996634,0.28869232,102050.0,102040.0,0.55001667]
[1738157997649,0.29369232,102050.0,102040.0,0.55001667]
[1738157999142,0.38097638,102050.0,102040.0,0.55001667]
[1738157999846,0.37697638,102050.0,102040.0,0.55001667]
[1738158000035,0.38197638,102050.0,102040.0,0.18774685]
[1738158000237,0.6393647,102050.0,102020.0,0.3608]
[1738158000442,0.38138664,102030.0,102020.0,0.485]
[1738158000641,0.36094632,102030.0,102020.0,0.485]
[1738158001336,0.45358664,102030.0,102020.0,0.485]
[1738158002445,0.4634646,102030.0,102020.0,0.1242]
[1738158002749,0.4634646,102030.0,102000.0,1.34156123]
[1738158002750,0.6281586,102030.0,102000.0,1.14543223]
[1738158003047,0.28876932,102010.0,102000.0,1.14543223]
[1738158003439,0.28876932,102010.0,102000.0,1.21083223]
[1738158003640,0.38140964,102010.0,102000.0,0.85003223]
[1738158004439,0.74220964,102010.0,102000.0,0.85303223]
[1738158004641,0.74220964,102010.0,102000.0,0.85403223]
[1738158005352,0.74220964,102010.0,102000.0,0.1694]
[1738158006048,0.196148,102000.0,101990.0,0.20271492]
[1738158006249,0.81442864,102000.0,101990.0,0.20271492]
[1738158007236,0.81442864,102000.0,101990.0,0.20371492]
[1738158007548,0.81642864,102000.0,101990.0,0.20371492]
[1738158008246,0.81642864,102000.0,101990.0,0.20271492]
[1738158009042,0.81642864,102000.0,101980.0,9.79e-05]
[1738158009043,0.196167,101990.0,101980.0,9.79e-05]
[1738158009245,0.28880732,101990.0,101980.0,9.79e-05]
[1738158010146,0.28880732,101990.0,101980.0,0.3608979]
[1738158010454,0.28880732,101990.0,101980.0,0.3618979]
[1738158010849,0.28880732,101990.0,101980.0,0.3628979]
[1738158013955,1.78880732,101990.0,101980.0,0.3628979]
[1738158017342,1.86092732,101990.0,101980.0,0.3628979]
[1738158022250,0.36092732,101990.0,101980.0,0.3628979]
[1738158022759,0.28880732,101990.0,101980.0,0.3628979]
[1738158022957,0.00977376,102000.0,101980.0,0.66553822]
[1738158023158,0.00977376,102000.0,101990.0,0.556967]
[1738158023356,0.00977376,102000.0,101990.0,0.746967]
[1738158023554,0.17992438,102010.0,101990.0,0.5508]
[1738158023751,0.29630313,102010.0,102000.0,0.688448]
[1738158025053,0.29630313,102010.0,102000.0,0.68831382]
[1738158025459,0.30130313,102010.0,102000.0,0.68831382]
[1738158026163,0.29630313,102010.0,102000.0,0.68931382]
[1738158026359,0.29730313,102010.0,102000.0,0.68931382]
[1738158026656,0.49343213,102010.0,102000.0,0.68931382]
[1738158026863,0.29730313,102010.0,102000.0,0.76061382]
[1738158027364,0.29630313,102010.0,102000.0,0.76261382]
[1738158027861,0.29630313,102010.0,102000.0,0.76561382]
[1738158028465,0.20366281,102010.0,102000.0,0.76561382]
[1738158028669,0.30018329,102020.0,102000.0,0.76561382]
[1738158028969,0.30018329,102020.0,102010.0,0.3608]
[1738158030854,0.30018329,102020.0,102010.0,0.3618]
[1738158031853,0.30018329,102020.0,102010.0,0.3628]
[1738158034169,0.01142197,102020.0,102010.0,0.608929]
[1738158034774,0.01142197,102020.0,102010.0,0.70156932]
[1738158035573,0.00995072,102020.0,102010.0,0.608929]
[1738158038769,0.00014685,102020.0,102010.0,0.70156932]
[1738158042270,1e-08,102020.0,102010.0,0.70156932]
[1738158043173,0.19611001,102020.0,102010.0,0.608929]
[1738158044073,0.19611001,102020.0,102010.0,0.70156932]
[1738158044375,1e-08,102020.0,102010.0,0.70156932]
[1738158045772,0.08819901,102030.0,102010.0,0.50544032]
[1738158046072,0.196058,102050.0,102040.0,0.245068]
[1738158046370,0.40117531,102060.0,102050.0,0.196052]
[1738158046574,0.40117531,102060.0,102050.0,0.556852]
[1738158046979,0.49381563,102060.0,102050.0,0.556852]
[1738158047478,0.50334151,102060.0,102050.0,0.556852]
[1738158047774,0.50187101,102060.0,102050.0,0.556852]
[1738158048177,0.50487101,102060.0,102050.0,0.556852]
[1738158049379,0.51387101,102060.0,102050.0,0.557852]
[1738158049583,0.3102082,102060.0,102050.0,0.557852]
[1738158050472,0.3102082,102060.0,102050.0,0.3618]
[1738158051775,0.02152588,102060.0,102050.0,0.557852]
[1738158051980,0.012,102060.0,102050.0,0.757852]
[1738158052184,0.012,102060.0,102050.0,0.65049232]
[1738158052767,0.012,102060.0,102050.0,0.557852]
[1738158053374,0.10464032,102060.0,102050.0,0.557852]
[1738158053883,0.10464032,102060.0,102050.0,0.577852]
[1738158054383,0.012,102060.0,102050.0,0.577852]
[1738158060381,0.208033,102060.0,102050.0,0.577852]
[1738158061283,0.208033,102060.0,102050.0,0.557852]
[1738158061284,0.30067332,102060.0,102050.0,0.557852]
[1738158061688,0.30067332,102060.0,102050.0,0.3618]
[1738158062385,0.012,102060.0,102050.0,0.65049232]
[1738158062589,0.012,102060.0,102050.0,0.70049232]
[1738158063880,0.00014685,102070.0,102060.0,0.196033]
[1738158064083,0.20366281,102080.0,102070.0,0.196014]
[1738158064275,0.20366281,102080.0,102070.0,0.84825432]
[1738158065980,0.11637875,102080.0,102070.0,0.84825432]
[1738158067179,0.11737875,102080.0,102070.0,0.84825432]
[1738158070002,0.001,102080.0,102070.0,1.02386916]
[1738158070389,0.00014685,102090.0,102080.0,0.195994]
[1738158070695,0.00014685,102090.0,102080.0,0.83943432]
[1738158071085,0.19612185,102090.0,102080.0,0.746794]
[1738158073479,0.19712185,102090.0,102080.0,0.747794]
[1738158075793,0.28976217,102090.0,102080.0,0.5518]
[1738158076094,0.28976217,102090.0,102080.0,0.001]
[1738158076297,0.28976217,102090.0,102080.0,0.3618]
[1738158077086,0.30216708,102090.0,102080.0,0.3618]
[1738158079297,0.3948074,102090.0,102080.0,0.3618]